lending/lending_fUSD_20260110
["ID","MTS","AMOUNT","RATE_DAILY","PERIOD"]
[401171807,1768012252074,-500.0,0.00017973,2]
[401171808,1768012252084,-500.0,0.00017973,2]
[401171809,1768012252094,-500.0,0.00017973,2]
[401171810,1768012252103,-500.0,0.00017973,2]
[401171811,1768012252113,-500.0,0.00017973,2]
[401171812,1768012252123,-500.0,0.00017973,2]
[401171813,1768012252134,-500.0,0.00017973,2]
[401171814,1768012252144,-500.0,0.00017973,2]
[401171815,1768012252154,-500.0,0.00017973,2]
[401171816,1768012252163,-501.2767774,0.00017973,2]
[401171817,1768012252173,-300.29995774,0.00017973,2]
[401171818,1768012252183,-433.9562915,0.00017973,2]
[401171819,1768012252192,-260.97339631,0.00017973,2]
[401171820,1768012252203,-500.0,0.00017973,2]
[401171821,1768012252213,-500.0,0.00017973,2]
[401171822,1768012252223,-500.0,0.00017973,2]
[401171823,1768012252234,-500.0,0.00017973,2]
[401171824,1768012252244,-500.0,0.00017973,2]
[401171825,1768012252255,-500.0,0.00017973,2]
[401171826,1768012252264,-500.0,0.00017973,2]
[401171827,1768012252275,-500.0,0.00017973,2]
[401171828,1768012252285,-500.0,0.00017973,2]
[401171829,1768012252295,-500.0,0.00017973,2]
[401171830,1768012252304,-588.0072514,0.00017973,2]
[401171831,1768012252314,-500.0,0.00017973,2]
[401171832,1768012252323,-500.0,0.00017973,2]
[401171833,1768012252334,-500.0,0.00017973,2]
[401171834,1768012252344,-500.0,0.00017973,2]
[401171835,1768012252354,-500.0,0.00017973,2]
[401171836,1768012252364,-500.0,0.00017973,2]
[401171837,1768012252375,-500.0,0.00017973,2]
[401171838,1768012252386,-500.0,0.00017973,2]
[401171839,1768012252396,-191.10319937,0.00017973,2]
[401171840,1768012252407,-150.34167383,0.00017973,2]
[401171841,1768012252418,-500.0,0.00017973,2]
[401171842,1768012252428,-500.0,0.00017973,2]
[401171843,1768012252442,-500.0,0.00017973,2]
[401171844,1768012252459,-571.47009533,0.00017973,2]
[401171845,1768012252469,-500.85151996,0.00017973,2]
[401171846,1768012252479,-500.0,0.00017973,2]
[401171847,1768012252491,-500.0,0.00017973,2]
[401171848,1768012252502,-500.0,0.00017973,2]
[401171849,1768012252512,-230.15043616,0.00017973,2]
[401171850,1768012252523,-598.94814998,0.00017973,2]
[401171851,1768012252534,-150.0,0.00017973,2]
[401171852,1768012252545,-150.0,0.00017973,2]
[401171853,1768012252555,-150.0,0.00017973,2]
[401171854,1768012252565,-150.0,0.00017975,2]
[401171855,1768012252575,-150.0,0.00017977,2]
[401171856,1768012252585,-150.0,0.00017978,2]
[401171857,1768012252595,-150.0,0.0001798,2]
[401171858,1768012252604,-150.0,0.00017981,2]
[401171859,1768012252614,-500.0,0.00017982,2]
[401171860,1768012252623,-393.26677801,0.0001799,2]
[401171861,1768012252633,-393.26677801,0.0001799,2]
[401171862,1768012252643,-500.0,0.00017998,2]
[401171863,1768012252653,-500.0,0.00017998,2]
[401171864,1768012252667,-500.0,0.00017998,2]
[401171865,1768012252676,-500.0,0.00017998,2]
[401171866,1768012252686,-162.34338875,0.00017999,2]
[401171867,1768012252695,-24245.1616936,0.00017999,2]
[401171868,1768012252705,-115733.8489966,0.00017999,2]
[401171869,1768012252715,-1006.5165,0.00017999,2]
[401171870,1768012252725,-4729.9966949,0.00017999,2]
[401171871,1768012252735,-516.4841802,0.00017999,2]
[401171872,1768012252745,-3604.9257913,0.00017999,2]
[401171873,1768012252755,-308.3612929,0.00017999,2]
[401171874,1768012252765,-8653.607614,0.00017999,2]
[401171875,1768012252775,-300.0,0.00017999,2]
[401171876,1768012252785,-500.0,0.00017999,2]
[401171877,1768012252795,-500.0,0.00017999,2]
[401171878,1768012252805,-505.25136596,0.00017999,2]
[401171879,1768012252815,-527.4021431,0.00017999,2]
[401171880,1768012252825,-11563.77530464,0.00017999,2]
[401171881,1768012252835,-300.0,0.00017999,2]
[401171882,1768012252846,-671.12852877,0.00017999,2]
[401171883,1768012252855,-1931.4566792,0.00017999,2]
[401171884,1768012252866,-500.0,0.00017999,2]
[401171885,1768012252876,-500.0,0.00017999,2]
[401171886,1768012252886,-500.0,0.00017999,2]
[401171887,1768012252896,-500.0,0.00017999,2]
[401171888,1768012252907,-500.0,0.00017999,2]
[401171889,1768012252917,-500.0,0.00017999,2]
[401171890,1768012252928,-435.97747503,0.00017999,2]
[401171891,1768012252939,-300.0,0.00017999,2]
[401171892,1768012252950,-227.98056769,0.00018,2]
[401171893,1768012252961,-211.71180964,0.00018,2]
[401171894,1768012252972,-168.95489245,0.00018,2]
[401171895,1768012252982,-174.02592696,0.00018,2]
[401171896,1768012252993,-195.60258078,0.00018,2]
[401171897,1768012253003,-216.17286301,0.00018,2]
[401171898,1768012253020,-249.3099586,0.00018,2]
[401171899,1768012253036,-151.30794718,0.00018,2]
[401171900,1768012253048,-213.5300961,0.00018,2]
[401171901,1768012253068,-287.19045457,0.00018,2]
[401171902,1768012253079,-173.03993865,0.00018,2]
[401171903,1768012253092,-160.35362265,0.00018,2]
[401171904,1768012253104,-229.26830667,0.00018,2]
[401171905,1768012253117,-247.12115074,0.00018,2]
[401171906,1768012253128,-197.77953272,0.00018,2]
[401171907,1768012253142,-299.10146822,0.00018,2]
[401171908,1768012253153,-1590472.61425139,0.00018,2]
[401171909,1768012253163,-17862.08489367,0.00018,2]
[401171910,1768012254193,-1031121.48567316,0.00018,2]
[401171911,1768012254206,-1868229.80787804,0.00018,2]
[401171912,1768012254608,-1362.05540183,0.00018,2]
[401171913,1768012254643,-1425.78080434,0.00018,2]
[401171914,1768012254654,-1141.95986912,0.00018,2]
[401171915,1768012254664,-13700.0,0.00018,2]
[401171916,1768012254675,-3198.77275587,0.00018,2]
[401171917,1768012254779,-0.96639809,0.00018,2]
[401171918,1768012254790,-1124.48083153,0.00018,2]
[401171919,1768012254809,-1220.52685329,0.00018,2]
[401171920,1768012255069,-745.28774652,0.000159,2]
[401171921,1768012255079,-661.7,0.00016082,2]
[401171922,1768012255089,-719.34291175,0.00018,2]
[401171926,1768012877073,1239.0,0.0002,30]
[401171927,1768013320131,323.30142107,0.000202,30]
[401171930,1768013432535,-3571.53153388,0.00013713,2]
[401171942,1768013432828,-530.64846612,0.00013713,2]
[401171943,1768013432839,-250.65,0.00013715,2]
[401171944,1768013432848,-166.66,0.00013732,2]
[401171945,1768013432857,-166.66,0.00014021,2]
[401171946,1768013432867,-1155.283,0.0001426,2]
[401171947,1768013432877,-166.66,0.0001431,2]
[401171948,1768013432886,-331.77621294,0.00014451,2]
[401171949,1768013432895,-300.0,0.00014457,2]
[401171950,1768013432905,-1200.0,0.00014457,2]
[401171951,1768013432914,-150.0,0.00014458,2]
[401171952,1768013432923,-300.0,0.00014541,2]
[401171953,1768013432932,-151.0,0.00014542,2]
[401171954,1768013432942,-151.0,0.00014542,2]
[401171955,1768013432951,-151.0,0.00014542,2]
[401171956,1768013432960,-151.0,0.00014542,2]
[401171957,1768013432970,-151.0,0.00014542,2]
[401171958,1768013432979,-151.0,0.00014542,2]
[401171959,1768013432988,-151.0,0.00014542,2]
[401171960,1768013432998,-151.0,0.00014542,2]
[401171961,1768013433007,-151.0,0.00014542,2]
[401171962,1768013433016,-151.0,0.00014542,2]
[401171963,1768013433025,-151.0,0.00014542,2]
[401171964,1768013433035,-151.0,0.00014542,2]
[401171965,1768013433044,-733.69,0.00014542,2]
[401171966,1768013433054,-173.48362524,0.0001455,5]
[401171967,1768013433063,-500.0,0.0001455,2]
[401171968,1768013433073,-516.4841802,0.0001455,2]
[401171969,1768013433083,-500.0,0.0001455,2]
[401171970,1768013433092,-105.67532325,0.0001455,2]
[401171971,1768013433104,-394.32467675,0.0001455,2]
[401171972,1768013433114,-347.82954032,0.0001455,2]
[401171973,1768013433125,-152.17045968,0.0001455,2]
[401171974,1768013433134,-500.0,0.0001455,2]
[401171975,1768013433144,-7666.91796628,0.00014559,2]
[401171976,1768013433267,-1351.14592439,0.00014559,2]
[401171977,1768013433281,-1123.74605043,0.00014559,2]
[401171983,1768013438356,-9015.85975646,0.00014559,2]
[401171984,1768013438369,-2764.13390506,0.00014559,2]
[401171985,1768013438381,-3102.24489738,0.00014559,2]
[401171986,1768013438391,-1000.0,0.00014559,2]
[401171987,1768013438401,-166.66,0.00014599,2]
[401171988,1768013438411,-500.0,0.00014627,2]
[401171989,1768013438420,-202.33789897,0.00014627,2]
[401171990,1768013438429,-150.0,0.00014627,2]
[401171991,1768013438438,-500.0,0.00014627,2]
[401171992,1768013438448,-150.0,0.00014627,2]
[401171993,1768013438458,-150.0,0.00014627,2]
[401171994,1768013438467,-150.0,0.00014627,2]
[401171995,1768013438477,-150.0,0.00014627,2]
[401171996,1768013438487,-642.93196142,0.00014627,2]
[401171997,1768013438497,-24.46142623,0.00014659,2]
[401171998,1768013438510,-475.53857377,0.00014659,2]
[401171999,1768013438519,-64.47362669,0.00014659,2]
[401172000,1768013438535,-435.52637331,0.00014659,2]
[401172001,1768013438544,-500.0,0.00014659,2]
[401172002,1768013438554,-518.74295457,0.00014659,2]
[401172003,1768013438564,-500.0,0.00014659,2]
[401172004,1768013438573,-500.0,0.00014659,2]
[401172005,1768013438583,-500.0,0.00014659,2]
[401172006,1768013438593,-519.9411924,0.00014659,2]
[401172007,1768013438603,-500.0,0.00014659,2]
[401172008,1768013438613,-500.0,0.00014659,2]
[401172009,1768013438622,-500.0,0.00014659,2]
[401172011,1768013438632,-505.25136596,0.00014659,2]
[401172013,1768013438642,-500.0,0.00014659,2]
[401172015,1768013438651,-527.4021431,0.00014659,2]
[401172017,1768013438661,-327.61269242,0.00014659,2]
[401172018,1768013438670,-500.0,0.00014682,2]
[401172020,1768013438680,-150.0,0.00014682,2]
[401172022,1768013438690,-500.0,0.00014682,2]
[401172024,1768013438700,-151.52551194,0.00014682,2]
[401172025,1768013438710,-179.5158788,0.00014682,2]
[401172026,1768013438720,-150.0,0.00014682,2]
[401172027,1768013438729,-170.7282739,0.00014736,2]
[401172028,1768013438741,-329.2717261,0.00014736,2]
[401172029,1768013438752,-103.4972592,0.00014736,2]
[401172030,1768013438764,-396.5027408,0.00014736,2]
[401172031,1768013438773,-500.0,0.00014736,2]
[401172032,1768013438783,-500.0,0.00014736,2]
[401172033,1768013438793,-135.23435569,0.00014736,2]
[401172034,1768013438823,-364.76564431,0.00014736,2]
[401172035,1768013438832,-500.0,0.00014736,2]
[401172036,1768013438842,-500.0,0.00014736,2]
[401172037,1768013438851,-317.91236105,0.00014736,2]
[401172038,1768013438861,-500.0,0.00014736,2]
[401172039,1768013438870,-500.0,0.00014736,2]
[401172040,1768013438880,-157.56076175,0.00014737,2]
[401172041,1768013438889,-210.45876453,0.00014737,2]
[401172042,1768013438899,-500.0,0.00014737,2]
[401172043,1768013438909,-150.0,0.00014737,2]
[401172044,1768013438918,-28.74774048,0.00014737,2]
[401172045,1768013438930,-8541.66750054,0.00014737,2]
[401172046,1768013438942,-822.627884,0.00014737,2]
[401172047,1768013438953,-31151.33156887,0.00014737,2]
[401172048,1768013438963,-500.0,0.00014791,2]
[401172049,1768013438972,-150.0,0.00014791,2]
[401172050,1768013438982,-154.087793,0.00014794,2]
[401172051,1768013438991,-228.93328625,0.00014794,2]
[401172052,1768013439001,-162.28123602,0.00014794,2]
[401172053,1768013439012,-150.0,0.00014794,2]
[401172054,1768013439021,-150.0,0.00014794,2]
[401172055,1768013439032,-733.69,0.00014816,2]
[401172056,1768013439042,-500.0,0.00014846,2]
[401172057,1768013439053,-165.6053295,0.00014846,2]
[401172058,1768013439063,-213.21627468,0.00014849,2]
[401172059,1768013439072,-150.0,0.00014849,2]
[401172060,1768013439082,-166.66,0.00014888,2]
[401172061,1768013439092,-200.0,0.000149,2]
[401172062,1768013439101,-500.0,0.00014901,2]
[401172063,1768013439111,-260.91296692,0.00014904,2]
[401172064,1768013439121,-150.77760238,0.0001495,2]
[401172065,1768013439131,-500.0,0.00014956,2]
[401172066,1768013439140,-3280.0,0.00015,2]
[401172067,1768013439150,-500.0,0.00015011,2]
[401172068,1768013439159,-331.7762129,0.00015026,2]
[401172069,1768013439169,-500.0,0.00015065,2]
[401172070,1768013439180,-250.0,0.00015087,2]
[401172071,1768013439190,-765.06698758,0.00015087,2]
[401172072,1768013439200,-188.4270685,0.00015087,2]
[401172073,1768013439210,-733.69,0.0001509,2]
[401172074,1768013439220,-351.4183772,0.00015105,2]
[401172075,1768013439230,-519.75387124,0.00015105,2]
[401172076,1768013439241,-500.0,0.0001512,2]
[401172077,1768013439251,-500.0,0.00015175,2]
[401172078,1768013439262,-166.66,0.00015177,2]
[401172079,1768013439272,-500.0,0.0001523,2]
[401172080,1768013439282,-500.0,0.00015285,2]
[401172081,1768013439292,-5534.0,0.000153,3]
[401172082,1768013439302,-490.56024186,0.00015322,2]
[401172083,1768013439311,-500.0,0.00015339,2]
[401172084,1768013439321,-150.0,0.00015344,2]
[401172085,1768013439331,-150.0,0.00015344,2]
[401172086,1768013439341,-150.0,0.00015344,2]
[401172087,1768013439351,-150.0,0.00015344,2]
[401172088,1768013439362,-500.0,0.00015344,2]
[401172089,1768013439372,-150.0,0.00015344,2]
[401172090,1768013439381,-733.69,0.00015364,2]
[401172091,1768013439391,-500.0,0.00015394,2]
[401172092,1768013439401,-150.0,0.00015399,2]
[401172093,1768013439411,-150.0,0.00015399,2]
[401172094,1768013439421,-150.0,0.00015399,2]
[401172095,1768013439431,-286.06682416,0.00015399,2]
[401172096,1768013439440,-500.0,0.00015399,2]
[401172097,1768013439450,-150.64843739,0.00015399,2]
[401172098,1768013439460,-151.0,0.00015407,2]
[401172099,1768013439470,-155.09,0.00015407,2]
[401172100,1768013439479,-151.0,0.00015407,2]
[401172101,1768013439489,-151.0,0.00015407,2]
[401172102,1768013439499,-500.0,0.00015449,2]
[401172103,1768013439509,-150.0,0.00015454,2]
[401172104,1768013439519,-201.7434438,0.00015454,2]
[401172105,1768013439533,-150.0,0.00015454,2]
[401172106,1768013439543,-279.05012306,0.00015454,2]
[401172107,1768013439552,-3240.0,0.00015457,2]
[401172108,1768013439562,-500.0,0.00015504,2]
[401172109,1768013439571,-150.0,0.00015508,2]
[401172110,1768013439580,-150.0,0.00015508,2]
[401172111,1768013439590,-614.02122075,0.00015559,2]
[401172112,1768013439600,-150.0,0.00015563,2]
[401172113,1768013439609,-178.73,0.00015563,2]
[401172114,1768013439619,-3268.96104418,0.000156,5]
[401172119,1768013440508,-453.795,0.000156,5]
[401172120,1768013440616,-1811.24395582,0.000156,5]
[401172121,1768013440626,-331.7762129,0.00015601,2]
[401172122,1768013440636,-579.08358534,0.00015603,2]
[401172123,1768013440645,-230.15043616,0.00015618,2]
[401172124,1768013440654,-733.69,0.00015638,2]
[401172125,1768013440663,-341.25278332,0.00015684,2]
[401172126,1768013440672,-195.0,0.00015686,2]
[401172127,1768013440681,-621.07312214,0.000159,2]
[401172128,1768013440692,-621.0731221,0.000159,2]
[401172129,1768013440702,-1680.0,0.00015903,2]
[401172130,1768013440710,-733.69,0.00015912,2]
[401172131,1768013440720,-1000.0,0.00015918,2]
[401172132,1768013440729,-420.0,0.00015922,2]
[401172133,1768013440738,-500.0,0.00015987,2]
[401172134,1768013440747,-9999.99,0.00016116,2]
[401172135,1768013440756,-299.99,0.00016116,4]
[401172136,1768013440766,-12483.3,0.00016116,2]
[401172137,1768013440775,-150.99,0.00016116,2]
[401172138,1768013440784,-537.9,0.00016116,5]
[401172139,1768013440793,-499.99,0.00016116,2]
[401172140,1768013440802,-849.89,0.00016116,2]
[401172141,1768013440811,-150.99,0.00016116,2]
[401172142,1768013440820,-182.92,0.00016127,2]
[401172143,1768013440829,-331.7762129,0.00016176,2]
[401172144,1768013440839,-733.69,0.00016186,2]
[401172145,1768013440849,-150.0,0.000162,2]
[401172146,1768013440858,-150.0,0.000162,2]
[401172147,1768013440867,-150.0,0.000162,2]
[401172148,1768013440876,-150.0,0.000162,2]
[401172149,1768013440885,-150.0,0.000162,2]
[401172150,1768013440895,-150.0,0.000162,2]
[401172151,1768013440905,-150.0,0.000162,2]
[401172152,1768013440914,-150.0,0.000162,2]
[401172153,1768013440923,-150.0,0.000162,2]
[401172154,1768013440933,-150.0,0.000162,2]
[401172155,1768013440942,-150.0,0.000162,2]
[401172156,1768013440951,-150.0,0.000162,2]
[401172157,1768013440959,-150.0,0.000162,2]
[401172158,1768013440973,-150.25923791,0.000162,2]
[401172159,1768013441270,-150.0,0.000162,2]
[401172160,1768013441283,-150.0,0.000162,2]
[401172161,1768013441293,-150.0,0.000162,2]
[401172162,1768013441302,-150.0,0.00016219,2]
[401172163,1768013441312,-200.0,0.0001622,2]
[401172164,1768013441321,-150.0,0.0001622,2]
[401172165,1768013441331,-150.0,0.00016222,2]
[401172166,1768013441340,-150.0,0.00016223,2]
[401172167,1768013441349,-150.0,0.00016225,2]
[401172168,1768013441359,-150.0,0.00016227,2]
[401172169,1768013441368,-150.0,0.00016228,2]
[401172170,1768013441378,-150.0,0.00016237,2]
[401172171,1768013441387,-150.0,0.00016241,2]
[401172172,1768013441397,-150.0,0.00016244,2]
[401172173,1768013441406,-150.0,0.00016246,2]
[401172174,1768013441415,-150.0,0.00016251,2]
[401172175,1768013441424,-150.0,0.00016254,2]
[401172176,1768013441434,-150.0,0.00016255,2]
[401172177,1768013441443,-150.0,0.00016256,2]
[401172178,1768013441453,-150.0,0.00016261,2]
[401172179,1768013441462,-150.0,0.00016264,2]
[401172180,1768013441471,-150.0,0.00016267,2]
[401172181,1768013441480,-150.0,0.00016268,2]
[401172182,1768013441489,-613.94531007,0.00016273,2]
[401172183,1768013441498,-500.0,0.00016273,2]
[401172184,1768013441507,-150.0,0.00016275,2]
[401172185,1768013441517,-150.0,0.00016276,2]
[401172186,1768013441526,-150.0,0.00016281,2]
[401172187,1768013441538,-150.0,0.00016282,2]
[401172188,1768013441547,-150.0,0.00016283,2]
[401172189,1768013441556,-150.0,0.00016289,2]
[401172190,1768013441566,-150.0,0.0001629,2]
[401172191,1768013441575,-150.0,0.00016291,2]
[401172192,1768013441584,-150.0,0.00016294,2]
[401172193,1768013441593,-150.0,0.00016301,2]
[401172194,1768013441603,-150.0,0.00016302,2]
[401172195,1768013441612,-150.0,0.00016307,2]
[401172196,1768013441623,-150.0,0.00016311,2]
[401172197,1768013441633,-150.0,0.00016311,2]
[401172198,1768013441642,-150.0,0.00016312,2]
[401172199,1768013441651,-150.0,0.00016314,2]
[401172200,1768013441661,-150.0,0.00016323,2]
[401172201,1768013441670,-150.0,0.00016327,2]
[401172202,1768013441679,-150.0,0.00016329,2]
[401172203,1768013441688,-150.0,0.00016329,2]
[401172204,1768013441697,-150.0,0.00016331,2]
[401172205,1768013441706,-150.0,0.00016333,2]
[401172206,1768013441715,-150.0,0.00016334,2]
[401172207,1768013441724,-150.0,0.00016337,2]
[401172208,1768013441733,-150.0,0.00016338,2]
[401172209,1768013441742,-150.0,0.00016343,2]
[401172210,1768013441752,-150.0,0.0001635,2]
[401172211,1768013441761,-150.0,0.00016352,2]
[401172212,1768013441770,-150.0,0.00016356,2]
[401172213,1768013441779,-150.0,0.00016359,2]
[401172214,1768013441788,-150.0,0.00016361,2]
[401172215,1768013441797,-150.0,0.00016364,2]
[401172216,1768013441806,-150.0,0.00016366,2]
[401172217,1768013441815,-150.0,0.00016369,2]
[401172218,1768013441823,-150.0,0.00016377,2]
[401172219,1768013441832,-150.0,0.00016378,2]
[401172220,1768013441841,-150.0,0.0001638,2]
[401172221,1768013441850,-150.0,0.00016382,2]
[401172222,1768013441859,-150.0,0.00016384,2]
[401172223,1768013441868,-150.0,0.00016387,2]
[401172224,1768013441876,-150.0,0.00016388,2]
[401172225,1768013441885,-150.0,0.00016393,2]
[401172226,1768013441895,-150.0,0.00016394,2]
[401172227,1768013441904,-150.0,0.000164,2]
[401172228,1768013441912,-150.0,0.00016403,2]
[401172229,1768013441921,-150.0,0.00016405,2]
[401172230,1768013441930,-150.0,0.00016405,2]
[401172231,1768013441939,-150.0,0.00016406,2]
[401172232,1768013441948,-1000.0,0.00016408,2]
[401172233,1768013441957,-1000.0,0.00016408,2]
[401172234,1768013441967,-150.0,0.00016415,2]
[401172235,1768013441977,-150.0,0.00016422,2]
[401172236,1768013441986,-150.0,0.00016422,2]
[401172237,1768013441995,-150.0,0.00016425,2]
[401172238,1768013442004,-150.0,0.00016425,2]
[401172239,1768013442013,-150.0,0.00016425,2]
[401172240,1768013442022,-150.0,0.00016428,2]
[401172241,1768013442031,-150.0,0.00016428,2]
[401172242,1768013442040,-500.0,0.00016438,2]
[401172243,1768013442049,-500.0,0.00016438,2]
[401172244,1768013442058,-500.0,0.00016438,2]
[401172245,1768013442067,-500.0,0.00016438,2]
[401172246,1768013442076,-500.0,0.00016438,2]
[401172247,1768013442085,-500.0,0.00016438,2]
[401172248,1768013442095,-555.39660713,0.00016438,2]
[401172249,1768013442104,-500.0,0.00016438,2]
[401172250,1768013442113,-500.0,0.00016438,2]
[401172251,1768013442121,-500.0,0.00016438,2]
[401172252,1768013442131,-500.0,0.00016438,2]
[401172253,1768013442140,-500.0,0.00016438,2]
[401172254,1768013442149,-500.0,0.00016438,2]
[401172255,1768013442157,-500.0,0.00016438,2]
[401172256,1768013442166,-500.0,0.00016438,2]
[401172257,1768013442175,-600.0,0.00016438,2]
[401172258,1768013442184,-889.0,0.00016438,2]
[401172259,1768013442193,-567.0,0.00016438,2]
[401172260,1768013442202,-150.0,0.00016442,2]
[401172261,1768013442211,-150.0,0.00016444,2]
[401172262,1768013442220,-150.0,0.00016444,2]
[401172263,1768013442229,-150.0,0.00016445,2]
[401172264,1768013442238,-150.0,0.00016449,2]
[401172265,1768013442246,-150.0,0.00016451,2]
[401172266,1768013442255,-150.0,0.00016454,2]
[401172267,1768013442264,-150.0,0.00016457,2]
[401172268,1768013442273,-150.0,0.00016457,2]
[401172269,1768013442282,-733.76347755,0.0001646,2]
[401172270,1768013442292,-150.0,0.00016462,2]
[401172271,1768013442300,-150.0,0.00016466,2]
[401172272,1768013442310,-150.0,0.00016467,2]
[401172273,1768013442318,-150.0,0.00016469,2]
[401172274,1768013442327,-150.0,0.0001647,2]
[401172275,1768013442336,-150.0,0.00016473,2]
[401172276,1768013442345,-150.0,0.00016477,2]
[401172277,1768013442354,-150.0,0.00016479,2]
[401172278,1768013442363,-150.0,0.00016481,2]
[401172279,1768013442372,-150.0,0.00016486,2]
[401172280,1768013442381,-150.0,0.00016489,2]
[401172281,1768013442390,-150.0,0.00016496,2]
[401172282,1768013442399,-150.0,0.00016496,2]
[401172283,1768013442408,-150.0,0.000165,2]
[401172284,1768013442417,-150.0,0.00016504,2]
[401172285,1768013442426,-150.0,0.00016505,2]
[401172286,1768013442435,-150.0,0.00016507,2]
[401172287,1768013442446,-150.0,0.00016511,2]
[401172288,1768013442455,-1000.0,0.00016515,2]
[401172289,1768013442464,-150.0,0.00016519,2]
[401172290,1768013442473,-150.0,0.00016519,2]
[401172291,1768013442482,-150.0,0.00016521,2]
[401172292,1768013442490,-150.0,0.00016522,2]
[401172293,1768013442499,-150.0,0.00016527,2]
[401172294,1768013442508,-150.0,0.0001653,2]
[401172295,1768013442518,-150.0,0.00016532,2]
[401172296,1768013442527,-150.0,0.00016533,2]
[401172297,1768013442539,-150.0,0.00016537,2]
[401172298,1768013442548,-150.0,0.00016542,2]
[401172299,1768013442557,-150.0,0.00016548,2]
[401172300,1768013442566,-150.0,0.00016549,2]
[401172301,1768013442575,-150.0,0.00016555,2]
[401172302,1768013442584,-150.0,0.00016556,2]
[401172303,1768013442593,-150.0,0.00016556,2]
[401172304,1768013442603,-150.0,0.0001656,2]
[401172305,1768013442611,-150.0,0.0001656,2]
[401172306,1768013442620,-150.0,0.0001656,2]
[401172307,1768013442629,-150.0,0.0001656,2]
[401172308,1768013442638,-150.0,0.00016565,2]
[401172309,1768013442647,-150.0,0.00016568,2]
[401172310,1768013442655,-150.0,0.00016575,2]
[401172311,1768013442664,-150.0,0.00016576,2]
[401172312,1768013442673,-150.0,0.00016578,2]
[401172313,1768013442682,-150.0,0.0001658,2]
[401172314,1768013442691,-150.0,0.00016586,2]
[401172315,1768013442701,-150.0,0.00016586,2]
[401172316,1768013442710,-150.0,0.00016587,2]
[401172317,1768013442719,-150.0,0.00016588,2]
[401172318,1768013442727,-150.0,0.00016589,2]
[401172319,1768013442737,-150.0,0.00016594,2]
[401172320,1768013442746,-150.0,0.000166,2]
[401172321,1768013442755,-150.0,0.00016603,2]
[401172322,1768013442764,-150.0,0.00016606,2]
[401172323,1768013442772,-150.0,0.00016609,2]
[401172324,1768013442781,-150.0,0.0001661,2]
[401172325,1768013442790,-150.0,0.00016612,2]
[401172326,1768013442799,-150.0,0.00016615,2]
[401172327,1768013442808,-150.0,0.00016622,2]
[401172328,1768013442817,-1000.0,0.00016626,2]
[401172329,1768013442826,-150.0,0.0001663,2]
[401172330,1768013442835,-150.0,0.0001663,2]
[401172331,1768013442844,-150.0,0.00016631,2]
[401172332,1768013442853,-150.0,0.00016631,2]
[401172333,1768013442862,-150.0,0.00016633,2]
[401172334,1768013442870,-150.0,0.00016643,2]
[401172335,1768013442879,-150.0,0.00016644,2]
[401172336,1768013442887,-150.0,0.0001665,2]
[401172337,1768013442896,-150.0,0.0001665,2]
[401172338,1768013442905,-150.0,0.0001665,2]